bitfinex-derivatives/quotes_SOLF0:USTF0_20250411
["timestamp","ask_amount","ask_price","bid_price","bid_amount"]
[1744396029607,0.05822886,121.01,120.98,0.05849429]
[1744396029809,8.32632886,121.01,120.98,8.32779429]
[1744396030121,0.05822886,121.01,120.98,16.09044924]
[1744396030814,0.05822886,121.01,120.99,8.2687]
[1744396031312,8.32612886,121.01,120.99,8.2687]
[1744396031513,0.05822886,121.01,120.98,8.32789429]
[1744396031713,0.05822886,121.01,120.98,0.05849429]
[1744396032019,16.03195495,121.0,120.93,24.30455495]
[1744396032315,18.27125495,121.0,120.93,8.2726]
[1744396032519,2.1536,120.99,120.91,24.30595495]
[1744396032814,2.1536,120.99,120.91,16.03195495]
[1744396032815,36.16,120.98,120.91,16.03195495]
[1744396033018,8.2722,120.95,120.93,8.273]
[1744396033214,8.2722,120.95,120.93,0.0552504]
[1744396033724,0.05830365,120.96,120.93,8.3280504]
[1744396034316,8.2719,120.95,120.93,0.0552504]
[1744396035319,8.2719,120.95,120.93,8.3284504]
[1744396035521,8.2719,120.95,120.93,0.0552504]
[1744396036520,0.05830365,120.96,120.93,0.0552504]
[1744396036722,0.05830365,120.96,120.93,8.3281504]
[1744396037222,8.32990365,120.96,120.93,8.3281504]
[1744396037717,0.05830365,120.96,120.93,8.3281504]
[1744396037919,8.2719,120.95,120.93,8.3281504]
[1744396039509,8.2725,120.94,120.93,0.0552504]
[1744396039714,44.4525,120.94,120.93,0.0552504]
[1744396041219,36.18,120.94,120.85,2.2134]
[1744396041411,4.5122,120.93,120.87,8.2767]
[1744396041818,8.2755,120.9,120.87,8.2767]
[1744396042122,36.18,120.9,120.85,27.81895643]
[1744396042322,36.23593818,120.9,120.87,0.06185848]
[1744396042523,36.23593818,120.9,120.88,8.2763]
[1744396042724,0.05593818,120.9,120.87,25.66741491]
[1744396042925,0.05593818,120.9,120.88,3.62914086]
[1744396043125,0.05593818,120.9,120.87,25.66741491]
[1744396043425,0.05593818,120.9,120.88,3.6290652]
[1744396043617,0.05593818,120.9,120.87,25.66741491]
[1744396043818,0.05593818,120.9,120.88,3.62716392]
[1744396044120,0.05593818,120.9,120.87,0.06185848]
[1744396044620,44.4562,120.89,120.87,0.06185848]
[1744396044822,36.18,120.89,120.87,0.06185848]
[1744396045323,8.2766,120.88,120.87,0.06185848]
[1744396045625,36.18,120.89,120.81,30.15225643]
[1744396045825,8.2775,120.87,120.84,8.279]
[1744396046020,8.2775,120.87,120.81,30.15225643]
[1744396046222,38.4525,120.89,120.81,30.15225643]
[1744396046422,36.18,120.89,120.87,8.2772]
[1744396046721,36.24061657,120.89,120.87,0.05519221]
[1744396047227,8.2769,120.88,120.87,0.05519221]
[1744396049322,8.2793,120.85,120.81,4.5467]
[1744396049624,44.4393,120.85,120.81,4.5467]
[1744396049823,44.4393,120.85,120.82,8.2806]
[1744396050024,8.2808,120.82,120.71,287.47077159]
[1744396050227,36.16,120.85,120.76,103.67365682]
[1744396050523,0.05566878,120.8,120.79,8.2826]
[1744396050826,36.16,120.85,120.78,25.60555643]
[1744396051229,8.2808,120.82,120.76,103.67365682]
[1744396051719,36.16,120.85,120.78,25.65893472]
[1744396051720,0.06094259,120.8,120.78,25.65893472]
[1744396051921,36.16,120.85,120.78,25.65893472]
[1744396052228,36.16,120.85,120.78,0.05337829]
[1744396052929,0.05695928,120.83,120.78,25.65893472]
[1744396054132,0.05695928,120.83,120.79,62.0]
[1744396054925,0.05695928,120.83,120.82,8.2807]
[1744396056330,8.2807,120.82,120.81,0.05669793]
[1744396064529,0.05695928,120.83,120.81,0.05669793]
[1744396065734,8.2807,120.82,120.81,0.05669793]
[1744396070239,0.05695928,120.83,120.82,8.2807]
[1744396070831,8.33695928,120.83,120.81,8.33769793]
[1744396072336,0.05695928,120.83,120.82,8.2807]
[1744396072637,0.05695928,120.83,120.81,0.05669793]
[1744396072838,8.33725928,120.83,120.81,8.33769793]
[1744396074541,8.2807,120.82,120.81,0.05669793]
[1744396074835,0.05695928,120.83,120.81,0.05669793]
[1744396075536,36.18,120.88,120.82,16.03717219]
[1744396075837,36.18,120.91,120.86,16.03717219]
[1744396076042,36.18,120.91,120.88,16.03717219]
[1744396076437,28.85535907,120.9,120.88,16.03717219]
[1744396076647,28.914571,120.9,120.89,8.2759]
[1744396078847,28.914571,120.9,120.88,8.33316121]
[1744396079442,28.914571,120.9,120.88,0.05686121]
[1744396079645,28.914571,120.9,120.89,8.2759]
[1744396079947,0.05921193,120.9,120.89,8.2759]
[1744396080147,36.14,120.94,120.88,25.68203674]
[1744396080350,36.14,120.94,120.9,25.62517553]
[1744396081049,64.99535907,120.97,120.9,62.0]
[1744396081249,0.06351078,120.95,120.94,33.89767553]
[1744396081443,28.85535907,120.97,120.94,29.25596363]
[1744396081636,28.85535907,120.97,120.94,25.62517553]
[1744396081837,28.85535907,120.97,120.96,8.2711]
[1744396082041,28.85535907,120.97,120.92,25.62517553]
[1744396082451,28.85535907,120.97,120.96,8.2711]
[1744396082843,0.06184817,120.98,120.96,8.2711]
[1744396083039,0.06184817,120.98,120.92,25.62517553]
[1744396083246,0.06184817,120.98,120.97,8.2704]
[1744396083548,0.05833588,120.99,120.96,0.05663855]
[1744396083749,8.32793588,120.99,120.96,8.32763855]
[1744396083948,0.05833588,120.99,120.96,0.05663855]
[1744396084954,8.2697,120.98,120.96,0.05663855]
[1744396086548,0.05833588,120.99,120.96,0.05663855]
[1744396087353,0.05833588,120.99,120.97,8.2701]
[1744396087545,0.05833588,120.99,120.96,0.05663855]
[1744396087747,8.2704,120.97,120.96,0.05663855]
[1744396089856,8.2701,120.98,120.96,0.05663855]
[1744396090152,0.05833588,120.99,120.96,0.05663855]
[1744396090755,0.05833588,120.99,120.97,8.2701]
[1744396092858,8.32763588,120.99,120.97,8.2701]
[1744396093050,0.05833588,120.99,120.96,0.05663855]
[1744396093358,8.2701,120.98,120.96,0.05663855]
[1744396094860,8.2704,120.97,120.96,0.05663855]
[1744396096269,8.2701,120.98,120.96,0.05663855]
[1744396097864,8.32773588,120.99,120.96,0.05663855]
[1744396098166,0.05833588,120.99,120.96,0.05663855]
[1744396098369,8.32743588,120.99,120.96,0.05663855]
[1744396098666,0.05833588,120.99,120.97,8.27]
[1744396098866,0.05833588,120.99,120.96,0.05663855]
[1744396099169,0.05833588,120.99,120.98,8.2697]
[1744396102266,0.05833588,120.99,120.97,8.27]
[1744396102463,0.05833588,120.99,120.96,0.05663855]
[1744396103673,8.2702,120.98,120.96,0.05663855]
[1744396104271,0.05833588,120.99,120.96,0.05663855]
[1744396104775,8.2703,120.98,120.96,0.05663855]
[1744396105573,8.2704,120.97,120.96,0.05663855]
[1744396108177,0.05833588,120.99,120.96,0.05663855]
[1744396109172,0.05833588,120.99,120.98,8.2697]
[1744396110276,0.05833588,120.99,120.96,6.69673855]
[1744396111372,0.05833588,120.99,120.98,8.2697]
[1744396111871,36.04,121.03,121.02,8.267]
[1744396113380,28.85535907,121.1,121.02,3.61380414]
[1744396113579,28.85535907,121.1,121.03,27.86363743]
[1744396113777,28.85535907,121.1,121.07,8.2635]
[1744396114185,37.11735907,121.1,121.07,8.2635]
[1744396114377,37.17739069,121.1,121.07,8.3193696]
[1744396115277,28.91539069,121.1,121.08,8.2628]
[1744396115772,28.91539069,121.1,121.07,0.0558696]
[1744396116070,37.17699069,121.1,121.07,8.3189696]
[1744396117088,8.2623,121.09,121.07,8.3189696]
[1744396117585,28.91539069,121.1,121.07,0.0558696]
[1744396117786,8.2629,121.08,121.07,0.0558696]
[1744396118285,28.91539069,121.1,121.07,0.0558696]
[1744396118286,0.06003162,121.1,121.07,29.26997151]
[1744396118590,0.06003162,121.1,121.07,25.65090703]
[1744396118779,0.06003162,121.1,121.09,8.2622]
[1744396119181,42.5811,121.15,121.08,4.2258]
[1744396119382,42.5811,121.15,121.09,25.59503743]
[1744396119890,42.5811,121.15,121.14,8.2588]
[1744396120081,42.5811,121.15,121.09,25.59503743]
[1744396120285,0.063167,121.13,121.11,0.05643165]
[1744396120482,0.063167,121.13,121.12,8.2602]
[1744396121593,0.063167,121.13,121.11,70.31693165]
[1744396121794,0.063167,121.13,121.11,0.05643165]
[1744396122195,0.063167,121.13,121.12,8.2602]
[1744396124994,36.02,121.18,121.17,8.2568]
[1744396127194,8.28535006,121.19,121.16,0.06341874]
[1744396127195,0.02985006,121.19,121.16,0.06341874]
[1744396127890,0.02985006,121.19,121.17,8.2565]
[1744396128995,0.02985006,121.19,121.16,8.32061874]
[1744396129298,0.02985006,121.19,121.16,0.06341874]
[1744396129786,8.2568,121.17,121.16,0.06341874]
[1744396129993,36.0,121.17,121.13,8.2592]
[1744396130495,8.2585,121.15,121.12,8.2599]
[1744396130996,8.31659045,121.15,121.12,8.31298896]
[1744396131490,8.31659045,121.15,121.12,0.05308896]
[1744396131491,0.05809045,121.15,121.12,0.05308896]
[1744396132086,8.2595,121.13,121.12,0.05308896]
[1744396132290,44.2595,121.13,121.12,0.05308896]
[1744396133992,8.2608,121.12,121.09,8.2619]
[1744396134997,8.2608,121.12,121.1,8.2615]
[1744396135192,8.31894844,121.12,121.1,8.2615]
[1744396135497,8.31894844,121.12,121.09,0.05783988]
[1744396135799,0.05814844,121.12,121.09,0.05783988]
[1744396135993,0.05814844,121.12,121.09,25.65287731]
[1744396136492,0.05814844,121.12,121.11,8.2609]
[1744396136698,4.3128,121.18,121.11,25.59503743]
[1744396136997,4.3128,121.18,121.1,40.3603]
[1744396137197,8.2572,121.17,121.15,8.2581]
[1744396137592,4.3128,121.18,121.16,8.2571]
[1744396137894,0.0566573,121.17,121.16,8.2571]
[1744396144003,0.0566573,121.17,121.15,8.31386802]
[1744396144206,0.0566573,121.17,121.15,0.05606802]
[1744396144604,0.0566573,121.17,121.15,8.31386802]
[1744396144905,0.0566573,121.17,121.15,0.05606802]
[1744396145106,0.0566573,121.17,121.16,8.2575]
[1744396145705,0.0566573,121.17,121.16,33.85253743]
[1744396145906,44.1939,121.22,121.19,8.255]
[1744396146300,35.94,121.22,121.19,8.255]
[1744396146501,8.2541,121.21,121.19,8.255]
[1744396146706,35.94,121.22,121.19,8.255]
[1744396147001,35.94,121.22,121.16,25.59503743]
[1744396147200,35.97155202,121.22,121.19,0.05718887]
[1744396147401,35.97155202,121.22,121.2,8.2541]
[1744396148709,35.97155202,121.22,121.19,8.31228887]
[1744396149007,35.97155202,121.22,121.19,0.05718887]
[1744396149308,8.2546,121.21,121.19,0.05718887]
[1744396150609,8.2546,121.21,121.19,8.31248887]
[1744396150813,35.97155202,121.22,121.19,0.05718887]
[1744396151209,35.97155202,121.22,121.2,8.2544]
[1744396151410,35.97155202,121.22,121.19,0.05718887]
[1744396152309,44.22555202,121.22,121.19,8.31228887]
[1744396152814,35.97155202,121.22,121.19,8.31228887]
[1744396153514,35.97155202,121.22,121.2,8.2546]
[1744396153716,44.22525202,121.22,121.2,8.2546]
[1744396154008,35.97155202,121.22,121.19,0.05718887]
[1744396154313,44.22535202,121.22,121.19,0.05718887]
[1744396154614,35.97155202,121.22,121.19,0.05718887]
[1744396155114,8.2541,121.21,121.19,8.31228887]
[1744396156313,44.22495202,121.22,121.19,8.31228887]
[1744396156618,35.97155202,121.22,121.19,0.05718887]
[1744396156814,61.56658945,121.22,121.12,32.27663743]
[1744396157016,61.53503743,121.22,121.13,65.62841215]
[1744396157315,8.255,121.2,121.17,8.2565]
[1744396157916,8.31090638,121.2,121.17,8.31712194]
[1744396158209,0.05590638,121.2,121.17,0.06062194]
[1744396158819,0.05590638,121.2,121.19,8.2554]
[1744396162919,0.05590638,121.2,121.17,0.06062194]
[1744396163323,0.05590638,121.2,121.19,8.2554]
[1744396165623,0.05590638,121.2,121.19,11.89678979]
[1744396167026,0.05590638,121.2,121.19,11.89696468]
[1744396167622,38.1276,121.27,121.19,11.90156468]
[1744396167824,46.3778,121.27,121.21,15.93561206]
[1744396168325,105.80298328,121.29,121.23,15.93561206]
[1744396168521,105.80298328,121.29,121.25,15.93561206]
[1744396168725,0.0328345,121.27,121.26,11.89135863]
[1744396169124,0.0328345,121.27,121.26,8.2507]
[1744396169325,0.0328345,121.27,121.26,11.8875993]
[1744396169624,0.0328345,121.27,121.26,8.2507]
[1744396174731,630.06,121.34,121.31,8.2468]
[1744396175027,630.06,121.34,121.26,25.45767512]
[1744396175229,8.2464,121.33,121.3,8.2477]
[1744396175732,8.2464,121.33,121.3,8.3006245]
[1744396176334,638.3056,121.34,121.3,0.0529245]
[1744396176631,35.88,121.34,121.3,0.0529245]
[1744396176932,35.88,121.34,121.32,8.2465]
[1744396177334,35.88,121.34,121.3,0.0529245]
[1744396177533,35.88,121.34,121.33,8.2459]
[1744396178431,8.2439,121.36,121.34,8.2452]
[1744396178626,8.2439,121.36,121.3,25.45767512]
[1744396178819,8.2439,121.36,121.34,0.05235731]
[1744396179627,71.18405907,121.38,121.34,0.05235731]
[1744396179829,42.3287,121.38,121.34,0.05235731]
[1744396180130,35.86,121.38,121.34,0.05235731]
[1744396183638,44.1028,121.38,121.34,0.05235731]
[1744396184039,44.1028,121.38,121.36,8.2438]
[1744396184838,44.1028,121.38,121.35,8.2442]
[1744396185340,35.86,121.38,121.34,0.05235731]
[1744396185543,4.4071,121.37,121.34,0.05235731]
[1744396185943,8.2443,121.36,121.34,0.05235731]
[1744396186438,4.4071,121.37,121.34,0.05235731]
[1744396186639,12.6506,121.37,121.34,0.05235731]
[1744396186835,4.4071,121.37,121.34,0.05235731]
[1744396187033,6.5422,121.37,121.34,0.05235731]
[1744396187237,6.5422,121.37,121.28,27.54337512]
[1744396187539,8.2444,121.36,121.33,8.2454]
[1744396188243,8.2447,121.35,121.33,8.2977468]
[1744396188541,0.05235732,121.36,121.33,0.0523468]
[1744396189037,0.05235732,121.36,121.35,8.2445]
[1744396191647,0.05235732,121.36,121.34,8.2449]
[1744396191848,0.05235732,121.36,121.33,0.0523468]
[1744396192442,4.49205732,121.36,121.33,0.0523468]
[1744396193144,8.2452,121.34,121.33,0.0523468]
[1744396193351,44.0852,121.34,121.33,0.0523468]
[1744396195647,35.84,121.34,121.33,0.0523468]
[1744396196353,44.0852,121.34,121.33,0.0523468]
[1744396200651,8.2468,121.32,121.28,2.0857]
[1744396200848,35.84,121.34,121.27,29.71481298]
[1744396201047,35.84,121.34,121.27,4.2874]
[1744396201451,61.26741298,121.34,121.27,8.2495]
[1744396201754,8.2476,121.31,121.29,0.06325326]
[1744396201954,0.06090504,121.32,121.29,0.06325326]
[1744396202157,0.06090504,121.32,121.29,25.49066624]
[1744396202344,6.51,121.43,121.31,25.42741298]
[1744396202549,42.31,121.43,121.33,25.42741298]
[1744396202749,37.09715907,121.39,121.33,25.42741298]
[1744396202958,28.85535907,121.39,121.37,8.2431]
[1744396203257,37.09725907,121.39,121.33,25.42741298]
[1744396203555,0.04379908,121.37,121.36,8.2437]
[1744396204056,8.28719908,121.37,121.35,0.06078167]
[1744396204258,0.04379908,121.37,121.35,0.06078167]
[1744396204456,0.04379908,121.37,121.36,8.2439]
[1744396205551,8.28739908,121.37,121.35,0.06078167]
[1744396206256,8.2439,121.36,121.35,0.06078167]
[1744396207658,0.04379908,121.37,121.27,416.22741298]
[1744396207860,35.8,121.36,121.28,3.61620148]
[1744396208047,8.246,121.33,121.27,61.22741298]
[1744396208253,35.8,121.32,121.28,3.616504]
[1744396208457,44.0467,121.32,121.25,29.84731298]
[1744396208659,0.06338344,121.31,121.3,8.2474]
[1744396212157,0.06338344,121.31,121.3,11.88410022]
[1744396212858,0.06338344,121.31,121.3,11.88440429]
[1744396213159,35.86338344,121.31,121.3,3.64037284]
[1744396213359,35.86338344,121.31,121.3,3.64037379]
[1744396213766,35.86338344,121.31,121.3,11.88827379]
[1744396213954,35.86338344,121.31,121.3,3.64037379]
[1744396214262,8.2479,121.3,121.29,0.0535046]
[1744396214561,35.86338344,121.31,121.29,3.69512592]
[1744396214763,35.86338344,121.31,121.29,0.0535046]
[1744396216361,44.11088344,121.31,121.29,8.3018046]
[1744396216656,35.86338344,121.31,121.29,0.0535046]
[1744396216957,8.2479,121.3,121.29,0.0535046]
[1744396217162,35.86338344,121.31,121.29,0.0535046]
[1744396217658,35.86338344,121.31,121.29,8.3015046]
[1744396217860,35.86338344,121.31,121.29,0.0535046]
[1744396218067,35.86338344,121.31,121.3,3.64398468]
[1744396218254,0.06338344,121.31,121.3,11.89188468]
[1744396218557,35.8,121.34,121.3,3.64398468]
[1744396218756,35.8,121.34,121.33,8.2459]
[1744396219253,46.1324,121.37,121.34,8.2449]
[1744396219454,44.08489731,121.37,121.34,0.05811759]
[1744396219857,44.08489731,121.37,121.34,8.30271759]
[1744396220364,8.2445,121.35,121.34,0.05811759]
[1744396220564,8.2445,121.35,121.34,3.70320528]
[1744396220864,8.2466,121.32,121.26,37.9395]
[1744396221063,8.2466,121.32,121.29,11.89373288]
[1744396221260,8.2466,121.32,121.3,3.64563288]
[1744396221566,35.8,121.33,121.22,2.1438]
[1744396221763,15.90665401,121.32,121.23,19.55372785]
[1744396221962,0.05360099,121.29,121.26,0.05796959]
[1744396222162,35.8,121.28,121.27,11.89667384]
[1744396223265,35.8,121.28,121.27,8.2496]
[1744396223772,35.8,121.28,121.26,8.30836959]
[1744396223966,35.8,121.28,121.26,0.05796959]
[1744396224367,44.0494,121.28,121.26,0.05796959]
[1744396225571,8.25,121.27,121.26,0.05796959]
[1744396226073,8.2517,121.25,121.22,8.253]
[1744396227073,35.8,121.28,121.22,8.253]
[1744396227273,0.05424769,121.25,121.22,8.31267201]
[1744396227667,8.30614769,121.25,121.22,8.31267201]
[1744396227868,0.05424769,121.25,121.22,8.31267201]
[1744396228377,0.05424769,121.25,121.23,3.64724382]
[1744396228676,8.30554769,121.25,121.24,3.64724382]
[1744396228877,0.05424769,121.25,121.22,8.31267201]
[1744396229072,44.0121,121.24,121.23,3.64391771]
[1744396229377,35.76,121.24,121.22,0.05967201]
[1744396229769,35.76,121.24,121.23,11.89369022]
[1744396229972,35.76,121.24,121.23,8.2527]
[1744396230275,35.76,121.24,121.23,11.89353441]
[1744396231374,35.76,121.24,121.22,8.31267201]
[1744396231873,35.76,121.24,121.22,0.05967201]
[1744396232374,8.30604769,121.25,121.22,0.05967201]
[1744396232572,0.05424769,121.25,121.23,3.6344356]
[1744396232772,0.05424769,121.25,121.22,0.05967201]
[1744396232973,0.05424769,121.25,121.23,3.63443166]
[1744396233275,0.05424769,121.25,121.24,8.252]
[1744396239790,8.2523,121.24,121.22,0.05967201]
[1744396239991,0.05424769,121.25,121.22,0.05967201]
[1744396240290,8.2525,121.24,121.22,8.31277201]
[1744396240491,0.05424769,121.25,121.22,0.05967201]
[1744396240792,8.2527,121.23,121.22,0.05967201]
[1744396241087,35.76,121.23,121.16,25.46281105]
[1744396241292,35.76,121.23,121.17,3.6313241]
[1744396241481,35.76,121.23,121.15,6.5968]
[1744396241684,35.76,121.23,121.16,3.63010109]
[1744396241993,35.76,121.23,121.17,8.2565]
[1744396242192,0.06357356,121.21,121.18,0.05763441]
[1744396242690,8.2552,121.2,121.18,0.05763441]
[1744396243692,8.2552,121.2,121.18,8.31373441]
[1744396243892,8.31797356,121.21,121.18,8.31373441]
[1744396244093,8.31797356,121.21,121.18,0.05763441]
[1744396244395,0.06357356,121.21,121.2,8.2547]
[1744396244893,0.06357356,121.21,121.2,11.87882888]
[1744396245192,0.06357356,121.21,121.2,8.2547]
[1744396246293,670.52762421,121.31,121.24,8.2518]
[1744396246489,8.2504,121.27,121.23,15.92910752]
[1744396246695,35.76,121.28,121.23,15.92910752]
[1744396246893,35.76,121.28,121.25,8.2509]
[1744396247095,44.0096,121.28,121.25,8.2509]
[1744396247498,44.07193953,121.28,121.25,8.30967693]
[1744396247898,8.2502,121.27,121.25,8.30967693]
[1744396248399,35.82233953,121.28,121.25,8.30967693]
[1744396248794,44.07213953,121.28,121.25,8.30967693]
[1744396249095,44.07213953,121.28,121.26,8.2506]
[1744396249702,44.07213953,121.28,121.25,0.05877693]
[1744396249703,44.07213953,121.28,121.25,8.30967693]
[1744396250100,8.2502,121.27,121.25,0.05877693]
[1744396250895,8.2502,121.27,121.25,8.30977693]
[1744396251300,44.07193953,121.28,121.25,8.30977693]
[1744396251800,8.25,121.27,121.25,8.30977693]
[1744396253495,8.2507,121.26,121.25,0.05877693]
[1744396253700,35.82233953,121.28,121.25,0.05877693]
[1744396254001,8.2503,121.27,121.25,8.31007693]
[1744396254296,35.82233953,121.28,121.25,8.31007693]
[1744396254701,8.2501,121.27,121.25,8.31007693]
[1744396254896,35.82233953,121.28,121.26,8.2507]
[1744396255100,35.82233953,121.28,121.25,0.05877693]
[1744396255501,8.2501,121.27,121.25,8.30977693]
[1744396255696,35.82233953,121.28,121.25,0.05877693]
[1744396255903,35.82233953,121.28,121.25,15.98788445]
[1744396256201,0.06233953,121.28,121.27,8.25]
[1744396256805,0.06233953,121.28,121.27,24.17910752]
[1744396256999,0.06233953,121.28,121.27,27.81345248]
[1744396258806,0.06233953,121.28,121.27,11.88434496]
[1744396259003,0.06233953,121.28,121.25,15.98788445]
[1744396259202,0.06233953,121.28,121.26,3.63536473]
[1744396259506,0.06233953,121.28,121.27,8.25]
[1744396259698,0.06233953,121.28,121.25,15.98788445]
[1744396259899,0.06233953,121.28,121.26,3.63579053]
[1744396260105,0.06233953,121.28,121.27,8.25]
[1744396261099,0.06233953,121.28,121.26,8.2503]
[1744396261295,0.06233953,121.28,121.25,0.05877693]
[1744396261502,8.31193953,121.28,121.25,8.30967693]
[1744396261798,0.06233953,121.28,121.25,8.30967693]
[1744396262008,8.2503,121.27,121.25,8.30967693]
[1744396263104,8.2503,121.27,121.25,0.05877693]
[1744396263305,8.2507,121.26,121.25,0.05877693]
[1744396263511,35.7,121.27,121.25,0.05877693]
[1744396264211,35.7,121.27,121.19,15.92910752]
[1744396264413,15.92910752,121.24,121.2,3.63912519]
[1744396264604,8.2549,121.2,121.17,8.2565]
[1744396264914,35.7,121.19,121.18,3.64117225]
[1744396265209,8.2564,121.18,121.15,8.2576]
[1744396265510,8.2564,121.18,121.17,0.06156214]
[1744396265908,43.9558,121.19,121.17,0.06156214]
[1744396266408,35.7,121.19,121.17,0.06156214]
[1744396266614,8.2561,121.18,121.17,0.06156214]
[1744396267307,43.9556,121.19,121.17,0.06156214]
[1744396268716,35.7,121.19,121.18,8.2561]
[1744396269017,0.06048938,121.2,121.18,3.6397256]
[1744396269207,0.06048938,121.2,121.17,0.06156214]
[1744396269409,8.31548938,121.2,121.17,8.31796214]
[1744396270622,0.06048938,121.2,121.17,0.06156214]
[1744396271118,8.31578938,121.2,121.17,8.31806214]
[1744396273019,8.2555,121.19,121.17,8.31806214]
[1744396273217,8.2555,121.19,121.17,0.06156214]
[1744396273921,8.31538938,121.2,121.17,8.31826214]
[1744396275021,0.06048938,121.2,121.17,0.06156214]
[1744396275407,0.06048938,121.2,121.18,8.2557]
[1744396278019,8.31538938,121.2,121.18,8.2557]
[1744396278231,8.31538938,121.2,121.17,0.06156214]
[1744396278720,8.31538938,121.2,121.18,8.2557]
[1744396278924,8.31538938,121.2,121.17,0.06156214]
[1744396279825,0.06048938,121.2,121.18,8.2558]
[1744396280415,0.06048938,121.2,121.17,0.06156214]
[1744396280619,15.9895969,121.2,121.17,0.06156214]
[1744396280822,0.06048938,121.2,121.17,0.06156214]
[1744396282330,0.06048938,121.2,121.18,8.2561]
[1744396282518,0.06048938,121.2,121.17,0.06156214]
[1744396282827,0.06048938,121.2,121.18,8.2555]
[1744396283127,0.06048938,121.2,121.17,0.06156214]
[1744396283328,0.06048938,121.2,121.18,8.2561]
[1744396284327,0.06048938,121.2,121.17,0.06156214]
[1744396284629,8.2561,121.18,121.17,0.06156214]
[1744396284820,35.72,121.18,121.12,2.0839]
[1744396285020,35.72,121.18,121.13,11.89240671]
[1744396285218,35.72,121.18,121.09,18.16660752]
[1744396285219,51.64910752,121.18,121.09,18.16660752]
[1744396285417,6.6567,121.17,121.12,8.2598]
[1744396285617,8.2598,121.13,121.07,20.51620752]
[1744396285818,43.9798,121.13,121.08,3.63278852]
[1744396286027,0.05469288,121.11,121.1,8.2613]
[1744396286229,0.05469288,121.11,121.09,0.05605764]
[1744396286831,0.05469288,121.11,121.09,8.31785764]
[1744396289544,0.05469288,121.11,121.1,8.2616]
[1744396289837,0.05469288,121.11,121.09,0.05605764]
[1744396290344,0.05469288,121.11,121.09,8.31785764]
[1744396291643,8.31559288,121.11,121.09,8.31785764]
[1744396292044,0.05469288,121.11,121.09,0.05605764]
[1744396292540,0.05469288,121.11,121.1,8.2616]
[1744396295446,0.05469288,121.11,121.09,0.05605764]
[1744396295649,8.2616,121.1,121.09,0.05605764]
[1744396296546,8.31589288,121.11,121.09,0.05605764]
[1744396296746,0.05469288,121.11,121.09,0.05605764]
[1744396297352,0.05469288,121.11,121.1,8.2616]
[1744396297544,8.2586,121.15,121.1,15.92910752]
[1744396298051,8.2583,121.15,121.12,8.2597]
[1744396298243,35.68,121.16,121.12,8.2597]
[1744396298645,0.06046546,121.15,121.13,0.05354049]
[1744396299052,8.2591,121.14,121.13,0.05354049]
[1744396299251,0.06046546,121.15,121.13,0.05354049]
[1744396299656,8.31926546,121.15,121.13,0.05354049]
[1744396299850,0.06046546,121.15,121.13,0.05354049]
[1744396300155,8.31896546,121.15,121.13,0.05354049]
[1744396301056,0.06046546,121.15,121.14,15.92910752]
[1744396301245,4.2236,121.22,121.14,31.85821504]
[1744396301447,8.2537,121.22,121.17,15.92910752]
[1744396301654,64.55535907,121.23,121.17,15.92910752]
[1744396302046,72.80845907,121.23,121.17,15.92910752]
[1744396302556,0.05579458,121.21,121.2,8.2547]
[1744396302950,0.05579458,121.21,121.19,15.98559181]
[1744396303244,0.05579458,121.21,121.19,8.31158429]
[1744396303658,8.30999458,121.21,121.19,0.05648429]
[1744396304056,0.05579458,121.21,121.19,0.05648429]
[1744396304262,0.05579458,121.21,121.19,8.31158429]
[1744396304961,8.30989458,121.21,121.19,8.31158429]
[1744396305461,0.05579458,121.21,121.19,0.05648429]
[1744396305754,8.2547,121.2,121.19,0.05648429]
[1744396306155,8.2561,121.18,121.14,2.1647]
[1744396306355,35.68,121.19,121.13,15.92910752]
[1744396306558,35.68,121.19,121.14,8.2585]
[1744396306756,35.68,121.19,121.13,15.92910752]
[1744396307056,35.68,121.19,121.15,8.2578]
[1744396307262,0.05804576,121.18,121.16,0.06125149]
[1744396308261,8.2569,121.17,121.16,0.06125149]
[1744396309868,8.2592,121.14,121.09,18.05400752]
[1744396310058,8.2592,121.14,121.1,3.63970664]
[1744396310264,8.2592,121.14,121.11,11.90030664]
[1744396310463,8.2592,121.14,121.11,8.2606]
[1744396310666,8.2595,121.13,121.11,8.2606]
[1744396310967,0.0534141,121.13,121.11,8.32058103]
[1744396312465,8.3130141,121.13,121.11,0.05998103]
[1744396312667,0.0534141,121.13,121.11,0.05998103]
[1744396313058,8.2602,121.12,121.11,0.05998103]